fUSD/lending_fUSD_20251206
["ID","MTS","AMOUNT","RATE_DAILY","PERIOD"]
[396530766,1765038788630,-10000.01,0.000131,2]
[396530767,1765038794374,-10000.01,0.000131,2]
[396530768,1765038794529,-10000.01,0.000131,2]
[396530769,1765038795193,-10000.01,0.000131,2]
[396530770,1765038795221,-10000.01,0.000131,2]
[396530771,1765038795245,-10000.01,0.000131,2]
[396530772,1765038795281,-10000.01,0.000131,2]
[396530773,1765038795335,-10000.01,0.000131,2]
[396530785,1765038805104,-10000.01,0.000131,2]
[396530786,1765038805235,-10000.01,0.000131,2]
[396530787,1765038811315,-10000.01,0.000131,2]
[396530788,1765038811437,-10000.01,0.000131,2]
[396530789,1765038814781,-10000.01,0.000131,2]
[396530790,1765038815028,-10000.01,0.000131,2]
[396530791,1765038815152,-10000.01,0.000131,2]
[396530794,1765038821381,-10000.01,0.000131,2]
[396530795,1765038821453,-10000.01,0.000131,2]
[396530873,1765039023117,-1200.0,0.00013098,2]
[396530874,1765039023147,-300.0,0.00013098,2]
[396530875,1765039023177,-300.0,0.00013098,2]
[396530876,1765039023206,-150.0,0.00013098,2]
[396530877,1765039023237,-250.0,0.00013099,2]
[396530878,1765039023268,-404.76289478,0.00013099,2]
[396530879,1765039023303,-500.0,0.00013099,2]
[396530880,1765039023339,-500.0,0.00013099,2]
[396530881,1765039023373,-500.0,0.00013099,2]
[396530882,1765039023408,-500.0,0.00013099,2]
[396530883,1765039023446,-290.48421044,0.00013099,2]
[396530884,1765039023697,-209.51578956,0.00013099,2]
[396530885,1765039023737,-500.0,0.00013099,2]
[396530886,1765039023772,-500.0,0.00013099,2]
[396530887,1765039023807,-500.0,0.00013099,2]
[396530888,1765039023840,-500.0,0.00013099,2]
[396530889,1765039023874,-500.0,0.00013099,2]
[396530890,1765039023909,-500.0,0.00013099,2]
[396530891,1765039023944,-500.0,0.00013099,2]
[396530892,1765039023983,-500.0,0.00013099,2]
[396530893,1765039024019,-500.0,0.00013099,2]
[396530894,1765039024053,-80.97842088,0.00013099,2]
[396530895,1765039025242,-128.53736868,0.00013099,2]
[396530896,1765039025265,-290.48421044,0.00013099,2]
[396530897,1765039025275,-209.51578956,0.00013099,2]
[396530898,1765039025950,-285.9509075,0.00013099,2]
[396530899,1765039027756,-4.53330294,0.00013099,2]
[396530900,1765039027791,-500.0,0.00013099,2]
[396530902,1765039027827,-609.08296051,0.00013099,2]
[396530903,1765039027866,-500.0,0.00013099,2]
[396530904,1765039027902,-500.0,0.00013099,2]
[396530905,1765039027937,-500.0,0.00013099,2]
[396530906,1765039027972,-500.0,0.00013099,2]
[396530907,1765039028006,-242.77515439,0.00013099,2]
[396530908,1765039028238,-3287.22716432,0.000131,2]
[396530909,1765039028267,-10000.01,0.000131,2]
[396530910,1765039034995,-10000.01,0.000131,2]
[396530911,1765039035197,-10000.01,0.000131,2]
[396530923,1765039062562,-269.47376315,0.00012999,2]
[396530924,1765039077553,-200.0,0.00012904,2]
[396530925,1765039077575,-207.4,0.00012904,2]
[396530926,1765039077601,-154.00879581,0.00012904,2]
[396530927,1765039079334,-61.06500419,0.00012904,2]
[396530928,1765039079356,-96.78038697,0.00012904,2]
[396530929,1765039082222,-126.25114363,0.00012904,2]
[396530930,1765039082246,-73.74885637,0.00012904,2]
[396530937,1765039086010,-157.53484086,0.00012904,2]
[396530938,1765039086034,-43.71498719,0.00012904,2]
[396530939,1765039088825,-311.26239036,0.00012904,2]
[396530940,1765039088851,-9.30205972,0.00012999,2]
[396530941,1765039091513,-217.15807713,0.00012999,2]
[396530942,1765039091541,-69.77635485,0.00013,2]
[396530943,1765039093027,-198.1639605,0.00013,2]
[396530955,1765039136984,-13.13538465,0.00013,2]
[396530956,1765039137006,-397.84575391,0.00013,2]
[396530957,1765039139096,-187.31676735,0.00013,2]
[396530958,1765039140637,-388.76342236,0.00013,2]
[396530959,1765039152030,-170.15575546,0.00012935,2]
[396530960,1765039156233,-185.59136797,0.00012935,2]
[396530965,1765039158474,-272.00859032,0.00012935,2]
[396530971,1765039159890,-207.84704889,0.00012935,2]
[396530978,1765039163055,-169.76735559,0.00012935,2]
[396530979,1765039165619,-185.26782743,0.000129,2]
[396530991,1765039226991,-11.19556161,0.000129,2]
[396530992,1765039227015,-161.01483704,0.000129,2]
[396530993,1765039229631,-373.54669257,0.00012835,2]
[396530994,1765039234675,-371.93945084,0.00012835,2]
[396530995,1765039237683,-40.08735059,0.00012835,2]
[396530996,1765039237706,-94.98516296,0.000129,2]
[396530997,1765039237728,-123.92748645,0.00013,2]
[396531003,1765039272219,-1402.14656993,0.00013,2]
[396531004,1765039272248,-1000.0,0.00013,2]
[396531005,1765039272277,-1200.0,0.00013099,2]
[396531006,1765039272306,-150.0,0.00013099,2]
[396531007,1765039272339,-300.0,0.00013099,2]
[396531008,1765039272369,-695.71686014,0.00013099,2]
[396531009,1765039272571,-504.28313986,0.00013099,2]
[396531010,1765039273966,-500.0,0.00013099,2]
[396531011,1765039274001,-471.18124419,0.00013099,2]
[396531012,1765039274032,-545.75709122,0.00013099,2]
[396531013,1765039274065,-371.93945084,0.00013099,2]
[396531014,1765039274173,-6222.2544275,0.000131,2]
[396531015,1765039276223,-10000.01,0.000131,2]
[396531016,1765039277920,-10000.01,0.000131,2]
[396531029,1765039301689,-2500.0,0.00013,2]
[396531030,1765039301719,-1129.86009045,0.00013,2]
[396531031,1765039301755,-500.0,0.00013099,2]
[396531032,1765039301789,-500.0,0.00013099,2]
[396531033,1765039301820,-240.2898191,0.00013099,2]
[396531034,1765039302304,-259.7101809,0.00013099,2]
[396531035,1765039302341,-500.0,0.00013099,2]
[396531036,1765039302374,-500.0,0.00013099,2]
[396531037,1765039302406,-500.0,0.00013099,2]
[396531038,1765039302440,-602.74759417,0.00013099,2]
[396531039,1765039302471,-500.0,0.00013099,2]
[396531040,1765039302502,-500.0,0.00013099,2]
[396531041,1765039302533,-500.0,0.00013099,2]
[396531042,1765039302563,-500.0,0.00013099,2]
[396531043,1765039302591,-170.08175372,0.00013099,2]
[396531044,1765039302991,-102.74759417,0.000131,2]
[396531045,1765039303005,-170.08175372,0.000131,2]
[396531046,1765039303040,-934.93094242,0.000131,2]
[396531047,1765039303055,-10000.01,0.000131,2]
[396531048,1765039303373,-304.82607904,0.000131,2]
[396531049,1765039304694,-10000.01,0.000131,2]
[396531050,1765039311298,-4154.33935058,0.00013,2]
[396531051,1765039311328,-1691.33129884,0.00013,2]
[396531052,1765039312666,-10000.01,0.000131,2]
[396531053,1765039312693,-10000.01,0.000131,2]
[396531087,1765039448603,188.94,7.034e-05,2]
[396531088,1765039449016,188.94,7.404e-05,2]
[396531089,1765039449212,188.94,7.774e-05,2]
[396531090,1765039449420,188.94,8.144e-05,2]
[396531091,1765039449722,188.94,8.515e-05,2]
[396531092,1765039455707,188.94,8.885e-05,2]
[396531093,1765039455957,188.94,9.255e-05,2]
[396531094,1765039456126,188.94,9.625e-05,2]
[396531095,1765039456618,188.94,9.995e-05,2]
[396531096,1765039456692,188.94,0.00010365,2]
[396531098,1765039456767,188.94,0.00010736,2]
[396531099,1765039456986,188.94,0.00011106,2]
[396531100,1765039457229,188.94,0.00011476,2]
[396531101,1765039457392,188.94,0.00011846,2]
[396531103,1765039457586,188.94,0.00012216,2]
[396531106,1765039457992,188.94,0.00012587,2]
[396531170,1765039563174,-188.94,0.00012957,2]
[396531171,1765039563206,-190.86560823,0.0001299,2]
[396531172,1765039563236,-190.86560823,0.00012992,2]
[396531173,1765039563267,-1000.0,0.00013,2]
[396531174,1765039563297,-2426.8874,0.00013,2]
[396531175,1765039563329,-300.0,0.00013089,2]
[396531176,1765039563360,-204.89276708,0.0001309,2]
[396531177,1765039563776,-995.10723292,0.0001309,2]
[396531179,1765039569364,-300.0,0.0001309,2]
[396531180,1765039569395,-1003.5506884,0.00013091,2]
[396531181,1765039569427,-150.0,0.00013091,2]
[396531182,1765039569464,-500.0,0.00013091,2]
[396531183,1765039569498,-500.0,0.00013091,2]
[396531184,1765039569531,-500.0,0.00013091,2]
[396531185,1765039569565,-222.52231544,0.00013091,2]
[396531186,1765039569600,-500.0,0.00013091,2]
[396531187,1765039569636,-500.0,0.00013091,2]
[396531188,1765039569671,-350.00000001,0.00013091,2]
[396531189,1765039569707,-447.8639923,0.00013091,2]
[396531191,1765039570018,-52.1360077,0.00013091,2]
[396531200,1765039575987,-359.70928465,0.00013091,2]
[396531201,1765039576021,-236.93075809,0.00013091,2]
[396531202,1765039576053,-151.0,0.00013092,2]
[396531203,1765039576089,-151.0,0.00013092,2]
[396531204,1765039576124,-151.0,0.00013092,2]
[396531205,1765039576158,-151.0,0.00013092,2]
[396531206,1765039576191,-151.0,0.00013092,2]
[396531207,1765039576226,-151.0,0.00013092,2]
[396531208,1765039576257,-151.0,0.00013092,2]
[396531209,1765039576288,-151.0,0.00013092,2]
[396531210,1765039576318,-596.98428552,0.00013092,2]
[396531211,1765039576350,-151.0,0.00013092,2]
[396531212,1765039576381,-155.52772105,0.00013092,2]
[396531213,1765039576411,-151.0,0.00013092,2]
[396531214,1765039576446,-286.4571496,0.00013092,2]
[396531215,1765039576476,-1000.0,0.00013092,2]
[396531216,1765039576631,-708.79160218,0.00013092,2]
[396531217,1765039576725,-291.20839782,0.00013092,2]
[396531218,1765039576756,-1000.0,0.00013092,2]
[396531219,1765039576787,-1000.0,0.00013092,2]
[396531220,1765039576815,-160.37151621,0.00013092,2]
[396531221,1765039576860,-500.0,0.00013092,2]
[396531222,1765039576892,-1000.0,0.00013092,2]
[396531223,1765039576924,-1000.0,0.00013092,2]
[396531224,1765039577078,-500.0,0.00013092,2]
[396531225,1765039577109,-151.0,0.00013092,2]
[396531226,1765039577138,-500.0,0.00013092,2]
[396531227,1765039577168,-500.0,0.00013092,2]
[396531228,1765039577199,-1000.0,0.00013092,2]
[396531229,1765039577232,-500.0,0.00013092,2]
[396531230,1765039577265,-1000.0,0.00013092,2]
[396531231,1765039577296,-222.4738,0.00013092,2]
[396531232,1765039577329,-500.0,0.00013092,2]
[396531233,1765039578135,-388.05856976,0.00013092,2]
[396531234,1765039578163,-188.69372083,0.00013092,2]
[396531235,1765039578179,-253.0624,0.00013092,2]
[396531236,1765039580095,-170.18530941,0.00013092,2]
[396531237,1765039580130,-500.0,0.00013092,2]
[396531238,1765039580164,-1000.0,0.00013092,2]
[396531239,1765039580195,-250.0,0.00013092,2]
[396531240,1765039580228,-500.0,0.00013092,2]
[396531241,1765039580257,-250.0,0.00013092,2]
[396531242,1765039580287,-1000.0,0.00013092,2]
[396531243,1765039580316,-554.28525961,0.00013092,2]
[396531244,1765039580345,-463.13997241,0.00013092,2]
[396531245,1765039580374,-250.0,0.00013092,2]
[396531246,1765039580443,-250.0,0.00013092,2]
[396531247,1765039580474,-250.0,0.00013092,2]
[396531248,1765039580504,-250.0,0.00013092,2]
[396531249,1765039580534,-1469.71413574,0.00013092,2]
[396531250,1765039580564,-250.0,0.00013092,2]
[396531251,1765039580593,-500.0,0.00013092,2]
[396531252,1765039580622,-251.08563354,0.00013092,2]
[396531253,1765039580650,-250.0,0.00013092,2]
[396531254,1765039580680,-500.0,0.00013092,2]
[396531255,1765039580709,-250.0,0.00013092,2]
[396531256,1765039580739,-500.0,0.00013092,2]
[396531257,1765039580768,-250.0,0.00013092,2]
[396531258,1765039580849,-500.0,0.00013092,2]
[396531259,1765039580882,-250.0,0.00013092,2]
[396531260,1765039580913,-500.0,0.00013092,2]
[396531261,1765039580944,-151.0,0.00013092,2]
[396531262,1765039580975,-500.0,0.00013092,2]
[396531263,1765039581004,-209.40437684,0.00013092,2]
[396531264,1765039581034,-500.0,0.00013092,2]
[396531265,1765039581064,-500.0,0.00013092,2]
[396531266,1765039581093,-500.0,0.00013092,2]
[396531267,1765039581121,-250.0,0.00013092,2]
[396531268,1765039581151,-500.0,0.00013092,2]
[396531269,1765039581179,-200.0,0.00013092,2]
[396531270,1765039581213,-250.0,0.00013092,2]
[396531272,1765039582497,-250.0,0.00013092,2]
[396531273,1765039582511,-250.0,0.00013092,2]
[396531274,1765039582521,-129.20124632,0.00013092,2]
[396531275,1765039582557,-120.79875368,0.00013092,2]
[396531276,1765039582583,-164.75632374,0.00013092,2]
[396531277,1765039583081,-85.24367626,0.00013092,2]
[396531278,1765039583112,-500.0,0.00013092,2]
[396531279,1765039583142,-250.0,0.00013092,2]
[396531280,1765039583172,-500.0,0.00013092,2]
[396531281,1765039583200,-250.0,0.00013092,2]
[396531282,1765039583231,-500.0,0.00013092,2]
[396531283,1765039583262,-250.0,0.00013092,2]
[396531284,1765039583292,-500.0,0.00013092,2]
[396531285,1765039583322,-250.0,0.00013092,2]
[396531286,1765039583351,-500.0,0.00013092,2]
[396531287,1765039583381,-250.0,0.00013092,2]
[396531288,1765039583410,-500.0,0.00013092,2]
[396531289,1765039583441,-250.0,0.00013092,2]
[396531290,1765039583471,-329.52264748,0.00013092,2]
[396531291,1765039583976,-170.47735252,0.00013092,2]
[396531292,1765039584209,-250.0,0.00013092,2]
[396531293,1765039584233,-55.6556076,0.00013092,2]
[396531294,1765039590482,-444.3443924,0.00013092,2]
[396531295,1765039590511,-500.0,0.00013092,2]
[396531296,1765039590539,-500.0,0.00013092,2]
[396531297,1765039590567,-151.0,0.00013092,2]
[396531298,1765039590592,-500.0,0.00013092,2]
[396531299,1765039590621,-500.0,0.00013092,2]
[396531300,1765039590650,-250.0,0.00013092,2]
[396531301,1765039590680,-151.0,0.00013092,2]
[396531302,1765039590710,-500.0,0.00013092,2]
[396531304,1765039590742,-250.0,0.00013092,2]
[396531305,1765039590774,-500.0,0.00013092,2]
[396531306,1765039590805,-620.0,0.00013092,2]
[396531307,1765039590836,-116.3212152,0.00013092,2]
[396531308,1765039591081,-34.6787848,0.00013092,2]
[396531309,1765039592549,-250.0,0.00013092,2]
[396531310,1765039592579,-500.0,0.00013092,2]
[396531311,1765039592610,-151.0,0.00013092,2]
[396531312,1765039592641,-250.0,0.00013092,2]
[396531313,1765039592673,-500.0,0.00013092,2]
[396531314,1765039592707,-151.0,0.00013092,2]
[396531315,1765039592737,-250.0,0.00013092,2]
[396531316,1765039592767,-500.0,0.00013092,2]
[396531318,1765039592798,-151.0,0.00013092,2]
[396531320,1765039592829,-250.0,0.00013092,2]
[396531322,1765039592861,-151.0,0.00013092,2]
[396531324,1765039592892,-500.0,0.00013092,2]
[396531327,1765039592921,-250.0,0.00013092,2]
[396531329,1765039592955,-151.0,0.00013092,2]
[396531331,1765039592984,-500.0,0.00013092,2]
[396531332,1765039593013,-250.0,0.00013092,2]
[396531333,1765039593042,-151.0,0.00013092,2]
[396531338,1765039593493,-188.01,0.00013092,2]
[396531340,1765039595165,-311.99,0.00013092,2]
[396531341,1765039595194,-250.0,0.00013092,2]
[396531342,1765039595223,-151.0,0.00013092,2]
[396531343,1765039595252,-500.0,0.00013092,2]
[396531344,1765039595282,-151.0,0.00013092,2]
[396531345,1765039595312,-500.0,0.00013092,2]
[396531346,1765039595340,-300.0,0.00013092,2]
[396531347,1765039595374,-311.1,0.00013098,2]
[396531348,1765039595403,-250.0,0.000131,2]
[396531349,1765039595591,-4549.83,0.000131,2]
[396531350,1765039601232,-10000.01,0.000131,2]
[396531351,1765039601249,-10000.01,0.000131,2]
[396531352,1765039601274,-10000.01,0.000131,2]
[396531353,1765039601918,-184.19305398,0.000131,2]
[396531451,1765039736489,-151.0,0.00013092,2]
[396531452,1765039736521,-151.0,0.00013092,2]
[396531453,1765039736552,-250.0,0.00013095,2]
[396531454,1765039736582,-1200.0,0.00013098,2]
[396531455,1765039736614,-300.0,0.00013098,2]
[396531456,1765039736644,-150.0,0.00013098,2]
[396531457,1765039736683,-500.0,0.00013099,2]
[396531458,1765039736718,-500.0,0.00013099,2]
[396531459,1765039736752,-500.0,0.00013099,2]
[396531460,1765039736784,-500.0,0.00013099,2]
[396531461,1765039736816,-500.0,0.00013099,2]
[396531462,1765039736848,-96.01,0.00013099,2]
[396531463,1765039737133,-403.99,0.00013099,2]
[396531541,1765039745072,-300.0,0.00013098,2]
[396531542,1765039745108,-500.0,0.00013099,2]
[396531543,1765039745144,-266.97333611,0.00013099,2]
[396531544,1765039745177,-500.0,0.00013099,2]
[396531545,1765039745212,-500.0,0.00013099,2]
[396531546,1765039745245,-500.0,0.00013099,2]
[396531547,1765039745279,-500.0,0.00013099,2]
[396531548,1765039745312,-500.0,0.00013099,2]
[396531549,1765039745351,-500.0,0.00013099,2]
[396531550,1765039745392,-500.0,0.00013099,2]
[396531551,1765039745427,-366.06332778,0.00013099,2]
[396531552,1765039745676,-133.93667222,0.00013099,2]
[396531555,1765039754158,-500.0,0.00013099,2]
[396531556,1765039754195,-9000.01,0.000131,2]
[396531557,1765039754370,-10000.01,0.000131,2]
[396531570,1765039767643,-234.28530657,0.00013,2]
[396531571,1765039770293,-169.69811988,0.00013,2]
[396531572,1765039774225,-192.63739086,0.00013,2]
[396531573,1765039777503,-674.36840042,0.00013,2]
[396531614,1765039827443,-431.46689418,0.000129,2]
[396531615,1765039830644,-326.96529855,0.000129,2]
[396531618,1765039831581,-4113.65328063,0.000129,2]
[396531621,1765039831635,-389.0181111,0.000129,2]
[396531622,1765039831644,-249.65540991,0.00012999,2]
[396531623,1765039831688,-260.98465573,0.00012999,2]
[396531624,1765039831700,-689.35993436,0.00012999,2]
[396531625,1765039831709,-300.0,0.00012999,2]
[396531626,1765039831718,-257.0,0.00012999,2]
[396531627,1765039831728,-837.14654084,0.00013,2]
[396531628,1765039831775,-1996.856654,0.00013,2]
[396531629,1765039831789,-805.848,0.00013,2]
[396531630,1765039831864,-14527.75633911,0.00013,2]
[396531631,1765039831875,-473.630693,0.00013,2]
[396531632,1765039831888,-570.88444884,0.00013,2]
[396531638,1765039837703,-196623.90815462,0.00013,2]
[396531640,1765039838129,-79230.93512775,0.00013,2]
[396531641,1765039838146,-9711.7074142,0.00013,2]
[396531642,1765039838159,-3811.78490924,0.00013,2]
[396531643,1765039838172,-2080.0,0.00013,2]
[396531644,1765039838183,-18653.89671864,0.00013,2]
[396531645,1765039838214,-1049.16699306,0.00013,2]
[396531646,1765039838229,-534.58553686,0.00013,2]
[396531647,1765039838240,-6879.56455118,0.00013,2]
[396531648,1765039838251,-1611.51836,0.00013,2]
[396531649,1765039838262,-2947.80744003,0.00013,2]
[396531651,1765039839744,-1071.91505889,0.00013,2]
[396531652,1765039839920,-150215.90565199,0.00013,2]
[396531653,1765039839931,-93145.0,0.00013,2]
[396531655,1765039840483,-1.7e-07,0.00013,2]
[396531660,1765039842641,-10000.01,0.00013,2]
[396531663,1765039842848,-10000.01,0.00013,2]
[396531664,1765039842955,-10000.01,0.00013,2]
[396531665,1765039842994,-928.60134739,0.00013,2]
[396531666,1765039843045,-141020.56084246,0.00013,2]
[396531667,1765039843055,-1027.19495209,0.00013,2]
[396531668,1765039843065,-1251.05789869,0.000131,2]
[396531669,1765039843075,-200.0,0.000131,2]
[396531670,1765039843086,-163.0,0.000131,2]
[396531671,1765039843098,-163.0,0.000131,2]
[396531672,1765039843107,-163.0,0.000131,2]
[396531673,1765039843118,-300.0,0.00013301,2]
[396531674,1765039843129,-250.0,0.00013301,2]
[396531675,1765039843138,-250.0,0.00013301,2]
[396531676,1765039843152,-250.0,0.00013301,2]
[396531677,1765039843166,-250.0,0.00013301,2]
[396531678,1765039843176,-250.0,0.00013301,2]
[396531679,1765039843185,-250.0,0.00013301,2]
[396531680,1765039843195,-250.0,0.00013301,2]
[396531681,1765039843205,-250.0,0.00013301,2]
[396531682,1765039843214,-250.0,0.00013301,2]
[396531683,1765039843224,-250.0,0.00013301,2]
[396531684,1765039843235,-250.0,0.00013301,2]
[396531685,1765039843244,-500.0,0.00013301,2]
[396531686,1765039843254,-500.0,0.00013301,2]
[396531687,1765039843264,-500.0,0.00013301,2]
[396531688,1765039843273,-500.0,0.00013301,2]
[396531689,1765039843283,-500.0,0.00013301,2]
[396531690,1765039843292,-500.0,0.00013301,2]
[396531691,1765039843302,-500.0,0.00013301,2]
[396531692,1765039843311,-500.0,0.00013301,2]
[396531693,1765039843321,-341.60449363,0.00013301,2]
[396531694,1765039843330,-311.1,0.00013301,2]
[396531695,1765039843339,-500.0,0.00013301,2]
[396531696,1765039843348,-500.0,0.00013301,2]
[396531697,1765039843358,-277.35679052,0.00013301,2]
[396531698,1765039843367,-336.91149027,0.00013301,2]
[396531699,1765039843377,-899.16,0.00013301,2]
[396531700,1765039843387,-188.94,0.00013327,2]
[396531701,1765039843397,-5261.10358442,0.00013456,2]
[396531702,1765039843407,-899.16,0.00013575,2]
[396531703,1765039843416,-1540.48,0.0001364,2]
[396531704,1765039843426,-150.99,0.0001364,2]
[396531705,1765039843435,-999.99,0.0001364,2]
[396531706,1765039843445,-1398.5236,0.00013671,2]
[396531707,1765039843454,-188.94,0.00013697,2]
[396531708,1765039843464,-500.0,0.00013698,2]
[396531709,1765039843474,-500.0,0.00013698,2]
[396531710,1765039843483,-500.0,0.00013698,2]
[396531711,1765039843493,-500.0,0.00013698,2]
[396531712,1765039843502,-500.0,0.00013698,2]
[396531713,1765039843511,-500.0,0.00013698,2]
[396531714,1765039843521,-538.04020552,0.00013698,2]
[396531715,1765039843531,-500.0,0.00013698,2]
[396531716,1765039843540,-500.0,0.00013698,2]
[396531717,1765039843550,-9999.99,0.00013699,2]
[396531718,1765039843560,-9999.99,0.00013699,2]
[396531719,1765039843570,-1192.27,0.00013699,2]
[396531720,1765039843580,-805.81,0.00013699,2]
[396531721,1765039843589,-899.16,0.00013849,2]
[396531722,1765039843599,-811.0,0.00013872,2]
[396531723,1765039843608,-160.27,0.00013902,2]
[396531724,1765039843618,-32460.60398989,0.00013928,2]
[396531725,1765039843627,-10523.56,0.00013969,2]
[396531726,1765039843637,-5261.10358442,0.00014011,2]
[396531727,1765039843647,-357.0,0.00014056,2]
[396531728,1765039843657,-1000.0,0.00014067,2]
[396531729,1765039843667,-188.94,0.00014067,2]
[396531730,1765039843676,-1349.0,0.00014078,2]
[396531731,1765039843686,-652.68,0.00014088,2]
[396531732,1765039843696,-899.16,0.00014123,2]
[396531733,1765039843706,-3978.7,0.00014128,2]
[396531734,1765039843716,-159.0,0.00014147,2]
[396531735,1765039843725,-500.0,0.00014166,2]
[396531736,1765039843735,-255.0,0.00014211,2]
[396531737,1765039843744,-420.0,0.00014256,2]
[396531738,1765039843755,-1092.155,0.0001426,2]
[396531739,1765039843764,-300.0,0.00014299,2]
[396531740,1765039843774,-1680.0,0.00014299,2]
[396531741,1765039843784,-1810.11,0.00014326,2]
[396531742,1765039843793,-899.16,0.00014397,2]
[396531743,1765039843802,-195.0,0.000144,2]
[396531744,1765039843811,-250.0,0.000144,2]
[396531745,1765039843820,-193.0,0.000144,2]
[396531746,1765039843829,-250.0,0.00014401,2]
[396531747,1765039843839,-250.0,0.00014408,2]
[396531748,1765039843848,-1000.0,0.0001448,2]
[396531749,1765039843858,-5261.10358442,0.00014567,2]
[396531750,1765039843867,-899.16,0.00014671,2]
[396531751,1765039843876,-163.0,0.000147,2]
[396531752,1765039843886,-163.0,0.000147,2]
[396531753,1765039843896,-1000.0,0.00014932,2]
[396531754,1765039843905,-2308.32018907,0.00014941,2]
[396531755,1765039843915,-899.16,0.00014945,2]
[396531756,1765039843925,-1000.27613852,0.00014958,2]
[396531757,1765039843935,-500.0,0.00014973,2]
[396531758,1765039843945,-500.0,0.00014973,2]
[396531759,1765039843956,-500.0,0.00014973,2]
[396531760,1765039843966,-1001.963,0.0001498,2]
[396531761,1765039843975,-200.0,0.00015,2]
[396531762,1765039843985,-200.0,0.00015,2]
[396531763,1765039843993,-200.0,0.00015,2]
[396531764,1765039844002,-200.0,0.00015,2]
[396531765,1765039844012,-200.0,0.00015,2]
[396531766,1765039844021,-176.17739378,0.00015,2]
[396531767,1765039844030,-160.27,0.0001506,2]
[396531768,1765039844039,-208.91308172,0.00015064,2]
[396531769,1765039844049,-2450.0,0.00015068,2]
[396531770,1765039844058,-1379.19526909,0.00015068,2]
[396531771,1765039844067,-5261.10358442,0.00015122,2]
[396531772,1765039844077,-899.22,0.00015219,2]
[396531773,1765039844087,-423.41,0.00015348,2]
[396531774,1765039844096,-433.0,0.00015416,2]
[396531775,1765039844106,-1000.0,0.00015521,2]
[396531776,1765039844115,-1000.0,0.00015521,2]
[396531777,1765039844125,-1000.0,0.00015521,2]
[396531778,1765039844135,-1393.94248316,0.00015568,2]
[396531779,1765039844145,-2450.0,0.00015616,2]
[396531780,1765039844159,-2751.0,0.00015617,2]
[396531781,1765039844168,-587.0,0.00015634,2]
[396531782,1765039844178,-2977.53,0.000157,2]
[396531783,1765039844187,-200.0,0.00015725,2]
[396531784,1765039844197,-2351.0,0.00015729,2]
[396531785,1765039844208,-163.0,0.000158,2]
[396531786,1765039844218,-163.0,0.000158,2]
[396531787,1765039844229,-542.0,0.00015832,2]
[396531788,1765039844238,-1802.74039861,0.00015869,2]
[396531789,1765039844248,-1000.0,0.00015892,2]
[396531790,1765039844258,-1000.0,0.00015906,2]
[396531791,1765039844267,-1176.97060426,0.00015932,2]
[396531792,1765039844277,-542.0,0.00015946,2]
[396531793,1765039844287,-1000.0,0.00015952,2]
[396531794,1765039844296,-215.56672734,0.00015959,2]
[396531795,1765039844306,-151.0,0.00015966,2]
[396531796,1765039844315,-500.0,0.00015968,2]
[396531797,1765039844324,-4890.0,0.00015969,2]
[396531798,1765039844333,-87279.61393527,0.00015969,2]